Cogmind - Beta 15 @@@ ROGUE MODE // 2025.05.09 @ 20:18:13 Player: Anting Result: Destroyed by Overlord with Heavy Hardcell Cannon Performance ------------- Evolutions (7) 3500 Regions Visited (18) 3600 Robots Destroyed (113) 565 Value Destroyed (4069) 4069 Prototype IDs (96) 1920 Alien Tech Used (1) 200 Bonus (6827) 6827 TOTAL SCORE: 20681 Bonus ------- High Alert Combat Kills 184 Follower Combat Kills 2222 Delivered SUBCON Basin 2000 Registered with UFD 300 Met Optimus in HQ 500 Built Enhanced Grunts 300 Met R17 at Cetus 500 Met Optimus at Protoforge 1000 Friendly Fire -179 Cogmind --------- Core Integrity 0/1300 Matter 300/300 Energy 78/170 System Corruption 6% Temperature Cool (4) Movement Flying (35) Location -3/Protoforge Parts ------- > --- POWER (2) -------- Light Antimatter Reactor > --- PROPULSION (7) --- Q-thruster Q-thruster Impulse Thruster Array > --- UTILITY (10) ----- Experimental Coolant Injector Plexus Tether Experimental Optical Array Advanced Sensor Array Advanced Signal Interpreter Advanced Signal Interpreter Experimental Targeting Computer Experimental Core Analyzer Experimental Reaction Control System Improved Hacking Suite > --- WEAPON (2) ------- Concept XC Strikerail > --- INVENTORY (5) ---- Centrium Medium Armor Plating Concept XC Strikerail Sigix Terminator Peak State ------------ > --- POWER ------------ Light Antimatter Reactor > --- PROPULSION ------- Q-thruster Q-thruster Impulse Thruster Array Impulse Thruster Array Experimental Surge Thruster > --- UTILITY ---------- Experimental Coolant Injector Plexus Tether Experimental Optical Array Advanced Sensor Array Advanced Signal Interpreter Advanced Signal Interpreter Experimental Targeting Computer Experimental Core Analyzer Experimental Reaction Control System Improved Hacking Suite > --- WEAPON ----------- Concept XC Strikerail Concept XC Strikerail > --- INVENTORY -------- Centrium Medium Armor Plating Concept XC Strikerail Sigix Terminator [Rating: 168] Favorites ----------- Power Light Antimatter Reactor Engine Light Ion Engine Power Core Neutrino Core Reactor Light Antimatter Reactor Propulsion Aluminum Leg Treads Light Treads Leg Aluminum Leg Wheel Compact Wheel Hover Unit Gravmag System Flight Unit Impulse Thruster Array Utility Humpback Device Improved Sensor Array Storage Humpback Processor Advanced Signal Interpreter Hackware Improved Hacking Suite Protection Centrium Medium Armor Plating Weapon Subdweller Machine Gun Energy Gun Small Laser Energy Cannon Subdweller Beam Cannon Ballistic Gun Subdweller Machine Gun Ballistic Cannon Light Cannon Launcher Grenade Launcher Special Weapon CPS Tube Impact Weapon Makeshift Hammer Slashing Weapon Companion Sword Build | -11 -10 -10 -8 -8 -6 -5 -5 -5 -5 -5 -5 -5 -4 -4 -4 -3 -3 -3 ------- Run | Yrd Mat Sub Rec Scr Fac Fac Was Fac Ext Cet Arc Hub Fac Upp Upp Res Qua Frg Slots Evolved 14 | . . . . . 8 2 . . . . . . 2 . . 2 . . Power 1 | . . . . . . . . . . . . . 1 . . . . . Propulsion 5 | . . . . . 3 1 . . . . . . . . . 1 . . Utility 8 | . . . . . 5 1 . . . . . . 1 . . 1 . . Weapon . | . . . . . . . . . . . . . . . . . . . Parts Attached 168 | 8 . 9 . 3 28 2 . 22 12 7 19 . 4 3 . 9 18 24 Power 20 | 1 . 1 . 1 2 . . 2 3 . 1 . 1 1 . . 3 4 Engine 4 | 1 . 1 . 1 1 . . . . . . . . . . . . . Core 6 | . . . . . 1 . . 2 3 . . . . . . . . . Reactor 10 | . . . . . . . . . . . 1 . 1 1 . . 3 4 Propulsion 58 | 3 . 2 . . 10 2 . 9 4 2 7 . 3 . . 2 10 4 Treads 8 | 1 . 1 . . . . . . 3 2 1 . . . . . . . Leg 11 | 2 . . . . 8 1 . . . . . . . . . . . . Wheel 3 | . . 1 . . 1 1 . . . . . . . . . . . . Hover 17 | . . . . . 1 . . 3 . . 6 . 3 . . 2 2 . Flight 19 | . . . . . . . . 6 1 . . . . . . . 8 4 Utility 63 | 2 . 1 . 1 13 . . 10 3 2 10 . . 1 . 5 5 10 Device 21 | 1 . . . . 4 . . 5 . . 4 . . . . 3 1 3 Storage 5 | 1 . 1 . 1 . . . . . . . . . 1 . . 1 . Processor 14 | . . . . . 3 . . 3 . . . . . . . 1 1 6 Hackware 15 | . . . . . 3 . . 2 2 . 6 . . . . 1 1 . Protection 8 | . . . . . 3 . . . 1 2 . . . . . . 1 1 Artifact . | . . . . . . . . . . . . . . . . . . . Weapon 27 | 2 . 5 . 1 3 . . 1 2 3 1 . . 1 . 2 . 6 Energy Gun 1 | 1 . . . . . . . . . . . . . . . . . . Energy Cannon 5 | . . 1 . . 1 . . . . 1 . . . . . . . 2 Ballistic Gun 10 | 1 . 2 . . . . . . . 2 1 . . . . . . 4 Ballistic Cannon 1 | . . 1 . . . . . . . . . . . . . . . . Launcher 4 | . . 1 . . 2 . . . 1 . . . . . . . . . Special Weapon 1 | . . . . . . . . 1 . . . . . . . . . . Impact Weapon 1 | . . . . . . . . . . . . . . 1 . . . . Slashing Weapon 4 | . . . . 1 . . . . 1 . . . . . . 2 . . Piercing Weapon . | . . . . . . . . . . . . . . . . . . . Special Melee Weapon . | . . . . . . . . . . . . . . . . . . . Unidentified Prototypes 19 | . . . . 1 . . . 3 . 3 1 . . . . 2 . 9 Corrupted Parts 2 | . . . . . . . . . . 1 1 . . . . . . . System Corruption 20 | . . . . . . . . . . 11 9 . . . . . . . Parts Lost 85 | . . 7 . . 14 . 3 5 10 4 1 . 3 . . 2 23 13 Power 16 | . . 2 . . 1 . . 1 2 . 1 . 1 . . . 4 4 Propulsion 36 | . . 3 . . 6 . 1 1 5 2 . . 1 . . 2 11 4 Utility 25 | . . 1 . . 6 . 2 2 2 2 . . 1 . . . 7 2 Weapon 8 | . . 1 . . 1 . . 1 1 . . . . . . . 1 3 Highest Loss Streak 21 | . . 4 . . 6 . 3 2 2 3 1 . 2 . . 1 21 4 To Critical Strikes 3 | . . 2 . . . . . . . . . . . . . . . 1 Average Backups 15 | 2 7 22 20 15 13 13 14 5 4 3 5 5 5 7 12 13 9 3 Power . | . 1 . . . . . . . . . . . . . 2 1 . . Propulsion 3 | 2 3 4 6 3 . . 1 . . . . . . . 1 2 1 . Utility 4 | . . 5 4 5 7 8 8 2 2 1 1 2 1 1 3 2 1 . Weapon 7 | . 3 12 10 5 3 3 3 1 2 2 3 3 3 4 6 6 5 3 Tool/Special . | . . . . . . . . . . . . . . . . . . . Unused Backups 50 | . . 9 . 18 4 . . 2 2 . 1 . 1 . . 3 6 4 Power 2 | . . . . . . . . . . . . . . . . 1 1 . Propulsion 9 | . . . . 8 . . . . . . . . . . . . 1 . Utility 14 | . . 4 . 3 . . . 1 1 . . . 1 . . 1 2 1 Weapon 24 | . . 5 . 7 4 . . . 1 . 1 . . . . 1 2 3 Tool/Special 1 | . . . . . . . . 1 . . . . . . . . . . Average Slot Usage (%) 69 | . 100 72 71 50 77 65 59 69 71 74 82 100 86 87 89 87 77 59 Engine 1 | . 14 2 . 3 3 . . . . . . . . . . . . . Treads 2 | . . 4 . . . . . . 3 15 19 . . . . . . . Leg 8 | . 28 12 14 4 20 17 15 . . . . . . . . . . . Wheel 6 | . . 9 14 11 1 5 5 . . . . . . . . . . . Hover 2 | . . . . . . . . 4 . . 3 35 31 31 31 28 19 . Flight 2 | . . . . . . . . 12 19 2 . . . . . . 4 12 Device 1 | . 14 . . . 6 5 3 6 5 . 3 . . . . 1 2 6 Storage 9 | . 14 14 14 12 6 5 5 . . . . . . 2 5 4 3 1 Processor 4 | . . . . . 7 11 9 21 17 17 15 5 5 5 5 6 3 15 Hackware 5 | . . . . . 15 11 11 10 11 11 10 29 22 21 21 20 21 13 Protection 1 | . . . . . 6 . . . 1 6 10 11 10 10 10 9 5 1 Energy Cannon 5 | . . 8 14 4 . . . . . 2 . . . . . . . . Ballistic Gun 9 | . 14 17 14 4 . . . . . 5 11 11 10 7 5 2 . 2 Slashing Weapon 2 | . . . . 8 6 5 5 5 4 2 . . . . . 4 7 1 Peak Build Rating 168 | 7 7 31 31 24 60 62 62 78 75 105 106 98 109 109 103 131 131 168 Average Rating 37 | 4 7 12 29 13 51 51 52 63 61 71 100 98 103 103 102 113 107 111 On Entrance 62 | . 7 7 31 14 24 49 62 35 75 53 105 98 98 98 102 103 124 109 Naked Turns 192 | . . . . 192 . . . . . . . . . . . . . . Heaviest Build 212 | 11 11 212 212 212 42 29 29 11 26 47 47 42 54 55 55 66 66 46 Greatest Support 211 | 20 20 40 16 16 92 38 28 40 69 206 211 54 63 63 63 78 77 53 Greatest Overweight (x) 20 | . . 20 13 13 12 2 1 . 8 . 1 . . . . 1 1 1 Average Overweight (x) 2 | . . 8 13 5 1 1 . . . . . . . . . . . . Largest Inventory Capacity 35 | 8 8 35 35 35 35 15 15 15 5 5 5 5 5 15 15 15 15 10 Average Capacity 21 | 6 8 29 35 26 15 15 15 5 5 5 5 5 5 9 15 15 12 6 Most Carried 35 | 4 8 35 35 31 30 15 15 15 5 5 5 5 5 12 13 15 15 9 Average Carried 17 | 2 7 24 33 15 13 13 15 5 4 3 4 5 4 7 12 14 11 5 Final Capacity 35 | 8 8 35 35 35 15 15 15 5 5 5 5 5 5 15 15 15 10 5 Final Carried 35 | 4 8 35 21 31 13 15 15 5 5 5 5 5 5 12 13 12 8 4 Class Distribution -------------------- 48% | Hauler-Mutant 17% | Mutant 14% | Hacker-Mutant 9% | Scavenger-Mutant Dominant Class ---------------- Mutant | -10/Materials Hauler-Mutant | -10/Subcaves Hauler-Mutant | -8/Recycling Hauler-Mutant | -8/Scraptown Hacker-Mutant | -6/Factory Hacker-Mutant | -5/Factory Hacker-Mutant | -5/Waste Hacker-Mutant | -5/Factory Hacker-Mutant | -5/Extension Scavenger-Mutant | -5/Cetus Scavenger-Mutant | -5/Archives Scavenger-Mutant | -5/Hub_04(d) Scavenger-Mutant | -4/Factory Scavenger-Mutant | -4/Upper Caves Scavenger-Mutant | -4/Upper Caves Scavenger-Mutant | -3/Research Hacker-Mutant | -3/Quarantine Hacker-Mutant | -3/Protoforge Resources | -11 -10 -10 -8 -8 -6 -5 -5 -5 -5 -5 -5 -5 -4 -4 -4 -3 -3 -3 ----------- Run | Yrd Mat Sub Rec Scr Fac Fac Was Fac Ext Cet Arc Hub Fac Upp Upp Res Qua Frg Matter Collected 3504 | 271 26 543 . 30 435 20 . 119 282 134 465 195 102 120 69 41 32 620 Remotely . | . . . . . . . . . . . . . . . . . . . Salvage Created 4697 | 17 142 553 . 70 939 34 . 153 1632 131 316 . 92 38 . 93 102 385 Parts 255 | 5 10 32 . 6 49 2 . 9 69 3 24 . 13 1 . 9 6 17 Haulers Intercepted 1 | . . . . . 1 . . . . . . . . . . . . . Recyclers Shooed 2 | . . . . . 2 . . . . . . . . . . . . . Parts Field Recycled . | . . . . . . . . . . . . . . . . . . . Retrieved Matter . | . . . . . . . . . . . . . . . . . . . Parts Self-Destructed 12 | . . 11 . . . . . . . . . . . . 1 . . . Prevented 1 | . . . . . . . . . . . . . . . 1 . . . Kills | -11 -10 -10 -8 -8 -6 -5 -5 -5 -5 -5 -5 -5 -4 -4 -4 -3 -3 -3 ------- Run | Yrd Mat Sub Rec Scr Fac Fac Was Fac Ext Cet Arc Hub Fac Upp Upp Res Qua Frg Combat Hostiles Destroyed 70 | . 5 17 . 1 12 . . 4 18 2 . . . . . . 3 8 Melee 30 | . . . . 1 6 . . 4 15 . . . . . . . 3 1 Guns 23 | . 5 10 . . . . . . . 1 . . . . . . . 7 Cannons 8 | . . 7 . . 1 . . . . . . . . . . . . . AOE 8 | . . . . . 5 . . . 3 . . . . . . . . . Classes Destroyed 21 | 1 2 3 . 1 6 1 . . 3 . 1 . . . . . . 3 Worker 7 | . . . . . 6 . . . . . . . . . . 1 . . Builder 3 | . . . . . 1 . . . . . . . 2 . . . . . Tunneler 2 | 1 . . . . 1 . . . . . . . . . . . . . Hauler 1 | . . . . . 1 . . . . . . . . . . . . . Recycler 6 | . . . . . 4 . . . 2 . . . . . . . . . Operator 10 | . . . . . . . . . . . 9 . 1 . . . . . Drone 2 | . . . . . . . . . . . . . . . . . . 2 Turret 1 | . . 1 . . . . . . . . . . . . . . . . Watcher 6 | . . . . . . 1 . 1 1 . . . 1 . . 2 . . Swarmer 25 | . 3 4 . . 7 . . 3 4 . . . . . . . 3 1 Grunt 10 | . 2 . . . 3 . . . 5 . . . . . . . . . Brawler 1 | . . . . . . . . . 1 . . . . . . . . . Duelist 1 | . . . . . . . . . . . . . . . . . . 1 Protector 1 | . . . . . . . . . 1 . . . . . . . . . Sentry 7 | . . . . . 1 . . . 6 . . . . . . . . . Hunter 4 | . . . . . 1 . . 1 1 . . . . . . . . 1 Programmer 3 | . . . . . . . . . . . . . . . . . . 3 Cetus Guard 2 | . . . . . . . . . . 2 . . . . . . . . Cobbler 1 | . . 1 . . . . . . . . . . . . . . . . Subdweller 13 | . . 13 . . . . . . . . . . . . . . . . Scrapper 1 | . . . . 1 . . . . . . . . . . . . . . Scrapoid 1 | . . . . . . . . . 1 . . . . . . . . . Decomposer 2 | . . . . . . . . . . . . . . 2 . . . . Thug 5 | . . . . . . . . . 5 . . . . . . . . . Guerrilla 1 | . . . . . . . . . 1 . . . . . . . . . Best Kill Streak 12 | 1 5 4 . 1 12 1 . 3 4 1 4 . 2 . . 1 3 4 Combat Bots Only 5 | . 5 4 . 1 5 . . 3 4 1 . . . . . . 3 4 Max Kills in Single Turn 7 | 1 1 1 . 1 7 1 . 1 7 1 1 . 2 1 . 1 1 2 Gunslinging 1 | . . . . . . . . . . . . . . . . . . 1 Exploded 3 | . . . . . 3 . . . 2 . . . . . . . . . Melee 1 | . . . . 1 1 . . 1 1 . . . . . . . 1 1 Uniques/NPCs Destroyed . | . . . . . . . . . . . . . . . . . . . Combat | -11 -10 -10 -8 -8 -6 -5 -5 -5 -5 -5 -5 -5 -4 -4 -4 -3 -3 -3 -------- Run | Yrd Mat Sub Rec Scr Fac Fac Was Fac Ext Cet Arc Hub Fac Upp Upp Res Qua Frg Hostile Shots Fired 858 | . 24 142 . 4 195 . 4 53 28 25 5 . 60 3 1 50 160 104 Missed 280 | . 8 47 . . 47 . . 30 6 9 3 . 29 2 1 21 51 26 Hits 578 | . 16 95 . 4 148 . 4 23 22 16 2 . 31 1 . 29 109 78 Melee 11 | . . . . . . . 4 . . . . . . . . . . 7 Projectile 567 | . 16 95 . 4 148 . . 23 22 16 2 . 31 1 . 29 109 71 AOE 3 | . . . . . . . . . 3 . . . . . . . . . Critical Strikes 32 | . 1 3 . . 10 . 1 . 1 3 . . 1 . . 3 2 7 Damage Taken 12673 | . 185 1078 . 92 2649 . 186 878 821 522 56 . 505 28 . 701 2467 2505 Core 2871 | . 22 184 . 24 484 . 54 446 268 29 . . 21 . . 113 508 718 Absorbed by Shields 113 | . . . . . . . . . 40 . . . . . . . . 73 Core Remaining (%) 53 | 100 . . . 8 43 . . . . . . 20 . . 98 . . . Volleys Fired 295 | 2 15 138 . . 10 . . . 3 18 40 9 31 . . 10 . 19 Largest 2 | 2 2 2 . . 1 . . . 1 2 2 2 2 . . 1 . 2 Hottest 110 | 60 60 110 . . 90 . . . 43 75 70 70 70 . . 35 . 64 Shots Fired 468 | 4 30 197 . . 10 . . . 3 26 77 18 62 . . 10 . 31 Gun 344 | 4 30 95 . . . . . . . 17 77 18 62 . . 10 . 31 Cannon 98 | . . 86 . . 3 . . . . 9 . . . . . . . . Launcher 26 | . . 16 . . 7 . . . 3 . . . . . . . . . Special . | . . . . . . . . . . . . . . . . . . . Kinetic 357 | 2 15 118 . . 7 . . . . 17 77 18 62 . . 10 . 31 Thermal 83 | 2 15 63 . . 3 . . . . . . . . . . . . . Explosive 19 | . . 16 . . . . . . 3 . . . . . . . . . Electromagnetic 9 | . . . . . . . . . . 9 . . . . . . . . Robot Hit Streak 16 | 2 5 16 . . 2 . . . 4 7 7 3 5 . . 2 . 14 Robot Miss Streak 6 | 1 2 4 . . 1 . . . . 3 6 4 3 . . 2 . 1 Penetration Max 1 | . . . . . . . . . . . 1 . 1 . . 1 . 1 Secondary Targets 4 | . . 2 . . . . . . . . . . . . . . . 2 Max Gunslinging Chain 1 | . . 1 . . . . . . . . . . . . . . . 1 Shots Hit Robots 324 | 3 18 88 . 1 43 1 . 7 40 17 38 4 15 2 . 8 7 32 Core Hits 183 | 2 9 35 . 1 31 1 . 5 38 6 19 1 9 . . 5 3 18 Critical Kills 10 | . . 1 . . . . . . . 1 3 . 3 . . 1 . 1 Critical Parts Destroyed 12 | . . 1 . . . . . . . 1 4 . 1 . . 1 . 4 Critical Strikes 31 | . . 3 . . . . . . 6 2 7 . 4 . . 3 1 5 Destroy 24 | . . 3 . . . . . . . 2 7 . 4 . . 3 . 5 Sever 1 | . . . . . . . . . . . . . . . . . 1 . Melee Attacks 180 | . . . . 1 54 2 . 28 48 . . . . 2 . 15 19 11 Impact 6 | . . . . . . . . . . . . . . 2 . 4 . . Slashing 174 | . . . . 1 54 2 . 28 48 . . . . . . 11 19 11 Piercing . | . . . . . . . . . . . . . . . . . . . Sneak Attacks 22 | . . . . . 8 . . 1 9 . . . . 2 . 2 . . Combat Hostiles 6 | . . . . . . . . 1 5 . . . . . . . . . Follow-up Attacks 5 | . . . . . . . . . 1 . . . . . . 1 3 . Damage Inflicted 13828 | 28 170 1871 . 34 3500 41 . 331 3518 488 1124 131 515 154 . 404 327 1192 Guns 4431 | 28 170 972 . . . . . . . 294 1124 131 515 . . 156 . 1041 Cannons 1034 | . . 774 . . 66 . . . . 194 . . . . . . . . Explosions 3152 | . . 125 . . 1512 . . . 1515 . . . . . . . . . Melee 5211 | . . . . 34 1922 41 . 331 2003 . . . . 154 . 248 327 151 Ramming . | . . . . . . . . . . . . . . . . . . . Kinetic 5132 | 18 89 1058 . . 706 . . . . 294 1124 131 515 . . 156 . 1041 Thermal 2500 | 10 81 688 . . 805 . . . 916 . . . . . . . . . Explosive 791 | . . 125 . . 67 . . . 599 . . . . . . . . . Electromagnetic 194 | . . . . . . . . . . 194 . . . . . . . . Impact 190 | . . . . . . . . . . . . . . 154 . 36 . . Slashing 5021 | . . . . 34 1922 41 . 331 2003 . . . . . . 212 327 151 Piercing . | . . . . . . . . . . . . . . . . . . . Highest Corruption 17 | . . . . . . . . 5 6 17 17 6 . . . 5 6 6 Average Corruption 6 | . . . . . . . . 3 5 11 10 6 . . . 4 5 6 Corruption Purged 20 | . . . . . . . . . . . 20 . . . . . . . Corruption Blocked . | . . . . . . . . . . . . . . . . . . . Effects 95 | . . . . . . . . 2 28 18 22 2 . . . . 10 13 Message Errors 19 | . . . . . . . . . 5 4 5 2 . . . . 2 1 Matter Fused 22 | . . . . . . . . . 7 4 7 . . . . . 2 2 Heat Flow Errors 16 | . . . . . . . . . 5 4 4 . . . . . 1 2 Energy Discharges 13 | . . . . . . . . 1 5 3 2 . . . . . 1 1 Parts Rejected 1 | . . . . . . . . . . . . . . . . . . 1 Parts Fused 1 | . . . . . . . . . 1 . . . . . . . . . Data Loss (minor) 11 | . . . . . . . . 1 2 . 1 . . . . . 3 4 Data Loss (major) 6 | . . . . . . . . . 2 1 . . . . . . 1 2 Misfires 1 | . . . . . . . . . . 1 . . . . . . . . Alerts 1 | . . . . . . . . . 1 . . . . . . . . . Weapon Failures 4 | . . . . . . . . . . 1 3 . . . . . . . Overload Shots . | . . . . . . . . . . . . . . . . . . . Overflow Damage 700 | . . 18 . . 239 . . . 281 . . . . 144 . 18 . . Projectiles 18 | . . 18 . . . . . . . . . . . . . . . . Explosions 323 | . . . . . 157 . . . 166 . . . . . . . . . Melee 359 | . . . . . 82 . . . 115 . . . . 144 . 18 . . Knockbacks 1 | . . 1 . . . . . . . . . . . . . . . . Impact . | . . . . . . . . . . . . . . . . . . . Kinetic 1 | . . 1 . . . . . . . . . . . . . . . . Secondary . | . . . . . . . . . . . . . . . . . . . Self-Inflicted Damage 572 | . . 66 . . 259 . . . 112 . . . . . . . 135 . Shots 10 | . . 3 . . 5 . . . 1 . . . . . . . 1 . Rammed . | . . . . . . . . . . . . . . . . . . . Targets Rammed . | . . . . . . . . . . . . . . . . . . . Kicked . | . . . . . . . . . . . . . . . . . . . Crushed . | . . . . . . . . . . . . . . . . . . . Highest Temperature 435 | 20 156 5 . 18 38 . . 66 259 156 207 24 240 75 135 134 435 187 Average Temperature 68 | 15 74 5 . 15 16 . . 39 107 49 88 11 66 30 62 30 145 114 Received Heat Transfer 1898 | . 96 354 . 48 526 . . 45 112 45 9 . 135 . . 90 162 276 Effects 7 | . . . . . . . . . . . . . 2 . . . 5 . Shutdowns 3 | . . . . . . . . . . . . . . . . . 3 . Interference 3 | . . . . . . . . . . . . . 2 . . . 1 . Damage (minor) 1 | . . . . . . . . . . . . . . . . . 1 . Siege Activations . | . . . . . . . . . . . . . . . . . . . Martial Activations . | . . . . . . . . . . . . . . . . . . . Shielding Activations . | . . . . . . . . . . . . . . . . . . . Robots Disrupted 1 | . . . . . 1 . . . . . . . . . . . . . Combat Hostiles 1 | . . . . . 1 . . . . . . . . . . . . . Robots Corrupted 1 | . . . . . . . . . . 1 . . . . . . . . Combat Hostiles 1 | . . . . . . . . . . 1 . . . . . . . . Parts Fried 4 | . . . . . . . . . . 1 . . . . . . . 3 Impact Corruptions 6 | . . . . . . . . . . . . . . 6 . . . . Robots Melted . | . . . . . . . . . . . . . . . . . . . Combat Hostiles . | . . . . . . . . . . . . . . . . . . . Parts Melted 4 | . . 1 . . . . . . 3 . . . . . . . . . Heat Transferred 2039 | 25 175 976 . . 500 . . . 363 . . . . . . . . . Parts Sabotaged . | . . . . . . . . . . . . . . . . . . . Parts Stolen . | . . . . . . . . . . . . . . . . . . . Parts Stripped . | . . . . . . . . . . . . . . . . . . . Power Chain Reactions . | . . . . . . . . . . . . . . . . . . . Alert | -11 -10 -10 -8 -8 -6 -5 -5 -5 -5 -5 -5 -5 -4 -4 -4 -3 -3 -3 ------- Run | Yrd Mat Sub Rec Scr Fac Fac Was Fac Ext Cet Arc Hub Fac Upp Upp Res Qua Frg Maximum Alert Level 3 | . . . . . 1 . . 1 3 2 2 2 . . . . . 1 Low Security (%) 68 | 100 100 . 100 . 39 100 100 90 53 . . 38 100 . . 100 100 84 Level 1 15 | . . . . . 60 . . 9 8 . 68 16 . . . . . 15 Level 2 12 | . . . . . . . . . 17 100 31 45 . . . . . . Level 3 3 | . . . . . . . . . 19 . . . . . . . . . Level 4 . | . . . . . . . . . . . . . . . . . . . Level 5 . | . . . . . . . . . . . . . . . . . . . High Security . | . . . . . . . . . . . . . . . . . . . Max Security . | . . . . . . . . . . . . . . . . . . . Peak Influence 1035 | 5 110 . 30 . 331 101 . 273 1035 608 431 429 198 . . 19 82 249 Initial 574 | . 3 . . . . 101 . . 121 574 229 113 198 . . . . 42 Average 171 | . 41 . 3 . 167 27 . 104 344 538 372 292 105 . . 3 13 143 Influence Increases 6277 | 5 120 670 90 . 594 7 . 511 1911 314 379 354 350 45 . 80 297 550 Destroy 0b10 Robot/C 2000 | . 100 100 . . 240 . . 80 920 160 80 140 . . . . 60 120 Destroy 0b10 Robot/NC 235 | 5 . . . . 65 5 . 5 45 10 45 5 25 . . 15 . 10 Destroy Leader 218 | . 20 . . . 22 2 . 22 96 . . 20 2 . . 4 10 20 Allied During Kill 928 | . . . . . . . . . 598 94 120 115 1 . . . . . Successful Hack 161 | . . . . . 24 . . 12 16 . . . 7 . . 6 . 96 Select Force Hacks 90 | . . . 90 . . . . . . . . . . . . . . . Disable Machine 540 | . . . . . 165 . . 30 45 . 90 30 45 . . 15 75 45 Destroy Structure 530 | . . . . . 78 . . 32 146 50 44 44 60 . . 10 62 4 Partial Spotted 90 | . . . . . . . . 45 . . . . 15 . . 30 . . Lose Combat Pursuer 1485 | . . 570 . . . . . 285 45 . . . 195 45 . . 90 255 Influence Decreases 6085 | . 115 680 90 . 386 215 . 262 1134 766 629 271 619 132 51 80 222 433 Entered New Map 1556 | . 2 6 . . . 107 . . 128 452 345 211 209 52 11 . . 33 Time Decay 3036 | . 113 604 90 . 256 108 . 212 405 214 254 60 175 80 40 65 90 270 Lost Part 707 | . . 70 . . 130 . . 50 100 40 10 . 30 . . 15 132 130 Lost Ally 480 | . . . . . . . . . 380 60 20 . 20 . . . . . Purge Threat 306 | . . . . . . . . . 121 . . . 185 . . . . . Squads Dispatched 38 | . . . . . 3 . . 12 7 . . 3 4 . . 2 1 6 Investigation 18 | . . . . . . . . 7 3 . . . 3 . . 1 . 4 Extermination 6 | . . . . . 1 . . 2 . . . . 1 . . . 1 1 Reinforcement 13 | . . . . . 2 . . 3 3 . . 3 . . . 1 . 1 Assault 1 | . . . . . . . . . 1 . . . . . . . . . Garrison . | . . . . . . . . . . . . . . . . . . . Intercept . | . . . . . . . . . . . . . . . . . . . Searches Triggered . | . . . . . . . . . . . . . . . . . . . Construction Impeded 3 | . . . . . . . . . 2 . . 1 . . . . . . Haulers Reinforced 3 | . . . . . 1 . . . . . . 1 . . . 1 . . Active Scanning Responses . | . . . . . . . . . . . . . . . . . . . Cargo Convoy Interrupts . | . . . . . . . . . . . . . . . . . . . Stealth | -11 -10 -10 -8 -8 -6 -5 -5 -5 -5 -5 -5 -5 -4 -4 -4 -3 -3 -3 --------- Run | Yrd Mat Sub Rec Scr Fac Fac Was Fac Ext Cet Arc Hub Fac Upp Upp Res Qua Frg Distress Signals 19 | . . . . . . . . 1 7 2 1 . 2 . . 2 1 3 Communications Jammed . | . . . . . . . . . . . . . . . . . . . Distress Signals . | . . . . . . . . . . . . . . . . . . . Times Spotted 259 | . 5 26 . 5 18 2 6 28 44 10 17 5 26 3 1 12 15 36 Peak Tracking Total 10 | . 4 6 . 5 5 1 6 9 7 5 1 2 9 3 3 10 9 9 Tactical Retreats 33 | . . 8 . . . . . 7 2 . . . 7 1 . . 2 6 Traps | -11 -10 -10 -8 -8 -6 -5 -5 -5 -5 -5 -5 -5 -4 -4 -4 -3 -3 -3 ------- Run | Yrd Mat Sub Rec Scr Fac Fac Was Fac Ext Cet Arc Hub Fac Upp Upp Res Qua Frg Traps Triggered 10 | . . . . . 1 1 . 3 3 . . . . . . . . 2 Indirectly . | . . . . . . . . . . . . . . . . . . . Trap Hack Attempts . | . . . . . . . . . . . . . . . . . . . Triggered . | . . . . . . . . . . . . . . . . . . . Disarmed . | . . . . . . . . . . . . . . . . . . . Reprogrammed . | . . . . . . . . . . . . . . . . . . . Reused . | . . . . . . . . . . . . . . . . . . . Traps Extracted . | . . . . . . . . . . . . . . . . . . . Installed . | . . . . . . . . . . . . . . . . . . . Triggered . | . . . . . . . . . . . . . . . . . . . Machines | -11 -10 -10 -8 -8 -6 -5 -5 -5 -5 -5 -5 -5 -4 -4 -4 -3 -3 -3 ---------- Run | Yrd Mat Sub Rec Scr Fac Fac Was Fac Ext Cet Arc Hub Fac Upp Upp Res Qua Frg Machines Disabled 39 | . . 3 . . 11 . . 2 3 . 6 2 3 . . 1 5 3 Max in Single Turn 5 | . . 1 . . 5 . . 1 2 . 1 1 1 . . 1 1 1 Energy Cycler 1 | . . . . . . . . . 1 . . . . . . . . . Machines Repaired . | . . . . . . . . . . . . . . . . . . . Machines Dismantled . | . . . . . . . . . . . . . . . . . . . Machines Sabotaged . | . . . . . . . . . . . . . . . . . . . Overloaded Fab Kills . | . . . . . . . . . . . . . . . . . . . Hacking | -11 -10 -10 -8 -8 -6 -5 -5 -5 -5 -5 -5 -5 -4 -4 -4 -3 -3 -3 --------- Run | Yrd Mat Sub Rec Scr Fac Fac Was Fac Ext Cet Arc Hub Fac Upp Upp Res Qua Frg Machines Accessed 65 | . 1 4 6 4 4 . . 13 8 . . 1 6 1 . 3 1 13 Terminals 28 | . 1 . 1 . 4 . . 3 7 . . 1 2 . . 2 1 6 Fabricators 5 | . . . . . . . . 1 . . . . . . . . . 4 Repair Stations . | . . . . . . . . . . . . . . . . . . . Recycling Units 17 | . . . 3 . . . . 6 1 . . . 3 . . 1 . 3 Scanalyzers 2 | . . . . . . . . 2 . . . . . . . . . . Garrison Access 2 | . . . . . . . . 1 . . . . 1 . . . . . Total Hacks 189 | . 2 9 18 25 16 . . 27 29 . . 6 17 1 . 6 1 32 Successful 107 | . . 9 12 25 4 . . 12 10 . . 4 11 1 . 3 1 15 Failed 82 | . 2 . 6 . 12 . . 15 19 . . 2 6 . . 3 . 17 Catastrophic 13 | . 1 . 1 . 3 . . 2 1 . . . 1 . . . . 4 Database Lockouts . | . . . . . . . . . . . . . . . . . . . Manual 93 | . 2 . 9 . 13 . . 13 12 1 . 6 15 . . 1 . 21 Terminals 101 | . 2 . 6 . 16 . . 7 27 . . 6 12 . . 5 1 19 Fabricators 7 | . . . . . . . . 1 . . . . . . . . . 6 Repair Stations . | . . . . . . . . . . . . . . . . . . . Recycling Units 26 | . . . 4 . . . . 9 2 . . . 3 . . 1 . 7 Scanalyzers 8 | . . . . . . . . 8 . . . . . . . . . . Garrison Access 4 | . . . . . . . . 2 . . . . 2 . . . . . Terminal Hacks 75 | . . 9 9 25 2 . . 1 7 . . 3 7 1 . 2 1 8 Record 37 | . . 6 7 24 . . . . . . . . . . . . . . Part Schematic 3 | . . . 1 . . . . . . . . 1 1 . . . . . Open Door 6 | . . 1 . 1 . . . . 2 . . . . 1 . . 1 . Branch Access Points 2 | . . . . . 1 . . . . . . . . . . 1 . . Terminal Index 4 | . . . . . 1 . . 1 . . . . 1 . . 1 . . Fabricator Index 1 | . . . . . . . . . . . . . 1 . . . . . Recycling Unit Index 2 | . . . . . . . . . . . . 1 . . . . . 1 Garrison Index 1 | . . . . . . . . . . . . . . . . . . 1 Alert Level 1 | . . . . . . . . . 1 . . . . . . . . . Unreport Threat 4 | . . . . . . . . . 2 . . . 2 . . . . . Locate Traps 3 | . . . . . . . . . 2 . . . . . . . . 1 Dispatch Records 1 | . . . . . . . . . . . . . . . . . . 1 Patrol Status 1 | . . . . . . . . . . . . . . . . . . 1 Recall Extermination 1 | . . . . . . . . . . . . . 1 . . . . . Recall Reinforcements 1 | . . . . . . . . . . . . 1 . . . . . . Zone Layout 4 | . . . . . . . . . . . . . 1 . . . . 3 Proto ID Catalog 1 | . . 1 . . . . . . . . . . . . . . . . Release Object 2 | . . 1 1 . . . . . . . . . . . . . . . Fabricator Hacks 3 | . . . . . . . . 1 . . . . . . . . . 2 Load Schematic 2 | . . . . . . . . 1 . . . . . . . . . 1 Build 1 | . . . . . . . . . . . . . . . . . . 1 Repair Station Hacks . | . . . . . . . . . . . . . . . . . . . Recycling Unit Hacks . | . . . . . . . . . . . . . . . . . . . Scanalyzer 4 | . . . . . . . . 4 . . . . . . . . . . Insert Component 2 | . . . . . . . . 2 . . . . . . . . . . Analyze 2 | . . . . . . . . 2 . . . . . . . . . . Garrison Access Hacks . | . . . . . . . . . . . . . . . . . . . Unauthorized Hacks 25 | . . . 3 . 2 . . 6 3 . . 1 4 . . 1 . 5 Terminals 9 | . . . . . 2 . . . 2 . . 1 1 . . . . 3 Track 2 | . . . . . . . . . . . . . . . . . . 2 Assimilate 1 | . . . . . . . . . . . . 1 . . . . . . Botnet 4 | . . . . . 1 . . . 2 . . . 1 . . . . . Disrupt 1 | . . . . . . . . . . . . . . . . . . 1 Operators 1 | . . . . . 1 . . . . . . . . . . . . . Fabricators . | . . . . . . . . . . . . . . . . . . . Repair Stations . | . . . . . . . . . . . . . . . . . . . Recycling Units 16 | . . . 3 . . . . 6 1 . . . 3 . . 1 . 2 Tunnel 3 | . . . 3 . . . . . . . . . . . . . . . Fedlink 12 | . . . . . . . . 6 . . . . 3 . . 1 . 2 Scrapoids 1 | . . . . . . . . . 1 . . . . . . . . . Scanalyzers . | . . . . . . . . . . . . . . . . . . . Garrison Access . | . . . . . . . . . . . . . . . . . . . Data Cores Recovered 1 | . . . . . . . . . . . . . 1 . . . . . Used . | . . . . . . . . . . . . . . . . . . . Hacking Detections 35 | . 1 . 1 . 4 . . 7 5 . . 1 2 . . 2 . 12 Full Trace Events 6 | . 1 . 1 . . . . 1 1 . . . . . . . . 2 Feedback Events . | . . . . . . . . . . . . . . . . . . . Feedback Blocked 1 | . . . . . . . . . . . . . . . . . . 1 Robot Schematics Acquired . | . . . . . . . . . . . . . . . . . . . Robots Built . | . . . . . . . . . . . . . . . . . . . Authchips . | . . . . . . . . . . . . . . . . . . . Time . | . . . . . . . . . . . . . . . . . . . Total Robot Build Rating . | . . . . . . . . . . . . . . . . . . . Part Schematics Acquired 22 | . . . 1 . . . . 6 11 1 1 1 1 . . . . . Parts Built 2 | . . . . . . . . . . . . . . . . . . 2 Authchips . | . . . . . . . . . . . . . . . . . . . Time 42 | . . . . . . . . . . . . . . . . . . 42 Total Part Build Rating 16 | . . . . . . . . . . . . . . . . . . 16 Parts Repaired . | . . . . . . . . . . . . . . . . . . . Time . | . . . . . . . . . . . . . . . . . . . Parts Recycled . | . . . . . . . . . . . . . . . . . . . Recycled Matter . | . . . . . . . . . . . . . . . . . . . Retrieved Matter . | . . . . . . . . . . . . . . . . . . . Retrieved Components . | . . . . . . . . . . . . . . . . . . . Parts Scanalyzed 2 | . . . . . . . . 2 . . . . . . . . . . Part Schematics Acquired 1 | . . . . . . . . 1 . . . . . . . . . . Parts Damaged 1 | . . . . . . . . 1 . . . . . . . . . . Bothacking | -11 -10 -10 -8 -8 -6 -5 -5 -5 -5 -5 -5 -5 -4 -4 -4 -3 -3 -3 ------------ Run | Yrd Mat Sub Rec Scr Fac Fac Was Fac Ext Cet Arc Hub Fac Upp Upp Res Qua Frg Used RIF Installer . | . . . . . . . . . . . . . . . . . . . Robots Hacked . | . . . . . . . . . . . . . . . . . . . Non-combat . | . . . . . . . . . . . . . . . . . . . Combat . | . . . . . . . . . . . . . . . . . . . Robot Hacks Applied . | . . . . . . . . . . . . . . . . . . . Relay Couplers Released . | . . . . . . . . . . . . . . . . . . . Fabnet Peak Effective % . | . . . . . . . . . . . . . . . . . . . Robots Rewired 24 | . . . . . 1 . . . 23 . . . . . . . . . Allies Hacked 3 | . . . . . . . . . 3 . . . . . . . . . Hacks Repelled 1 | . . . . . . . . . 1 . . . . . . . . . Allies | -11 -10 -10 -8 -8 -6 -5 -5 -5 -5 -5 -5 -5 -4 -4 -4 -3 -3 -3 -------- Run | Yrd Mat Sub Rec Scr Fac Fac Was Fac Ext Cet Arc Hub Fac Upp Upp Res Qua Frg Total Allies 38 | . . . . . 1 . . . 32 5 . . . . . . . . Largest Group 18 | . . . . . 1 . . . 18 6 5 4 1 . . . . . Highest-Rated Group 621 | . . . . . 41 . . . 621 514 480 384 96 . . . . . Highest-Rated Ally 159 | . . . . . 41 . . . 159 152 96 96 96 . . . . . Total Orders 3 | . . . . . . . . . . 1 2 . . . . . . . STAY 2 | . . . . . . . . . . 1 1 . . . . . . . FOLLOW 1 | . . . . . . . . . . . 1 . . . . . . . Ally Attacks 389 | . . . . . 1 . . . 279 47 30 29 3 . . . . . Total Damage 10758 | . . . . . . . . . 6396 1797 1326 1143 96 . . . . . Kills 56 | . . . . . . . . . 35 8 4 8 1 . . . . . Allies Corrupted 1 | . . . . . . . . . 1 . . . . . . . . . Allies Melted . | . . . . . . . . . . . . . . . . . . . Intel | -11 -10 -10 -8 -8 -6 -5 -5 -5 -5 -5 -5 -5 -4 -4 -4 -3 -3 -3 ------- Run | Yrd Mat Sub Rec Scr Fac Fac Was Fac Ext Cet Arc Hub Fac Upp Upp Res Qua Frg Active Infowar (turns) 3867 | 11 320 318 . . 644 . . 567 1133 38 . . . . . 200 209 427 Optics 337 | . . . . . . . . . . . . . . . . 134 . 203 Sensors 2289 | . . . . . 159 . . 257 1133 38 . . . . . 66 209 427 Terrain 9 | . . . . . . . . 9 . . . . . . . . . . Structural 485 | . . . . . 485 . . . . . . . . . . . . . Seismic 649 | 11 320 318 . . . . . . . . . . . . . . . . Machine Analysis 549 | . . . . . . . . 549 . . . . . . . . . . Robot Analysis Total . | . . . . . . . . . . . . . . . . . . . Derelict Logs Recovered 9 | . . 3 . 5 . . . . . . . . . . 1 . . . Drone Launches . | . . . . . . . . . . . . . . . . . . . Drone Recoveries . | . . . . . . . . . . . . . . . . . . . Exploration | -11 -10 -10 -8 -8 -6 -5 -5 -5 -5 -5 -5 -5 -4 -4 -4 -3 -3 -3 ------------- Run | Yrd Mat Sub Rec Scr Fac Fac Was Fac Ext Cet Arc Hub Fac Upp Upp Res Qua Frg Turns Passed 17203 | 78 320 6446 966 3391 765 408 100 569 1133 445 551 130 379 172 104 263 395 588 Spaces Moved 10692 | 51 188 1787 317 1875 376 299 89 1137 873 198 202 250 577 346 258 428 516 925 Core 619 | 5 . . . 609 3 . . . 2 . . . . . . . . . Treads 904 | . . 478 . . . . . . 104 198 124 . . . . . . . Legs 656 | 46 188 175 . . 242 4 1 . . . . . . . . . . . Wheels 3230 | . . 1134 317 1266 130 295 88 . . . . . . . . . . . Hover 2173 | . . . . . 1 . . 1 . . 78 250 577 346 258 428 234 . Flight 3110 | . . . . . . . . 1136 767 . . . . . . . 282 925 Fastest Speed 19 | 50 120 120 295 50 110 90 100 19 26 160 40 40 40 40 40 38 35 27 Average Speed 123 | 113 120 286 295 165 133 110 111 33 59 160 118 40 40 40 40 40 44 39 Slowest Speed 1520 | 120 120 1520 295 400 650 190 190 60 450 160 160 40 44 40 40 104 147 122 Overloaded Moves 30 | . . . . . . . . 30 . . . . . . . . . . Propulsion Burnouts . | . . . . . . . . . . . . . . . . . . . Robots Hopped 24 | . . . . . . . . 8 3 . . . . . . . 1 12 Potential Cave-ins . | . . . . . . . . . . . . . . . . . . . Cave-ins Triggered . | . . . . . . . . . . . . . . . . . . . Exploration Rate (%) 43 | 4 37 62 38 87 13 9 75 36 84 56 83 32 19 52 32 13 57 39 Regions Visited 18 Branch Regions 11 Pre-discovered Areas 13 | . . 2 3 6 . . . 1 . . . . . . 1 . . . Known Exits Taken 10 | . . . . . 1 . . 1 1 1 1 1 1 . 1 1 1 . Unknown Exits Taken 6 | 1 1 1 1 1 . . . . . . . . . 1 . . . . Scrap Searched 18 | . . 10 . 4 . . . . . . . . . 3 1 . . . Spaces Dug 67 | . . 2 . . 6 . . 16 8 . . 1 28 . . 5 . 1 Terrain Destroyed 318 | . . 44 . . 98 . . 16 40 4 29 12 37 . . 5 32 1 Melee 30 | . . . . . 6 . . 16 2 . . . . . . 5 . 1 Projectile 88 | . . 5 . . 1 . . . . 4 29 12 37 . . . . . AOE 200 | . . 39 . . 91 . . . 38 . . . . . . . 32 . Terrain Rammed . | . . . . . . . . . . . . . . . . . . . Walls Destroyed . | . . . . . . . . . . . . . . . . . . . Machines Disabled . | . . . . . . . . . . . . . . . . . . . Actions | -11 -10 -10 -8 -8 -6 -5 -5 -5 -5 -5 -5 -5 -4 -4 -4 -3 -3 -3 --------- Run | Yrd Mat Sub Rec Scr Fac Fac Was Fac Ext Cet Arc Hub Fac Upp Upp Res Qua Frg Total 14000 | 64 255 2924 351 2185 551 375 89 1274 1414 299 429 261 664 377 258 492 652 1086 Wait 2151 | . 49 927 27 209 56 70 . 69 281 70 152 3 48 15 . 15 81 79 Move 10630 | 50 187 1786 316 1874 375 299 88 1120 866 197 201 249 576 345 257 427 513 904 Hop 21 | . . . . . . . . 8 3 . . . . . . . 1 9 Pick Up 157 | 3 4 39 4 59 7 1 . 4 3 2 1 . 1 8 1 6 11 3 Fast Attach 121 | 8 . 2 . 3 7 2 1 16 9 6 20 . 1 3 . 7 14 22 Attach 58 | . . 7 . 2 20 . . 9 2 2 . . . 1 . 4 6 5 Detach 15 | 1 . 1 . . 2 . . 4 2 1 . . . 1 . . 1 2 Swap 14 | . . 3 . . 5 . . . 1 . 1 . 3 . . . 1 . Drop 145 | . . 21 4 37 11 1 . 16 4 3 14 . 4 2 . 10 8 10 Fire 295 | 2 15 138 . . 10 . . . 3 18 40 9 31 . . 10 . 19 Melee 174 | . . . . 1 54 2 . 28 47 . . . . 2 . 13 16 11 Ram . | . . . . . . . . . . . . . . . . . . . Kick . | . . . . . . . . . . . . . . . . . . . Crush . | . . . . . . . . . . . . . . . . . . . Escape Stasis 42 | . . . . . . . . . 22 . . . . . . . . 20 Rewire 175 | . . . . . 4 . . . 171 . . . . . . . . . Trap . | . . . . . . . . . . . . . . . . . . . Miscellaneous 2 | . . . . . . . . . . . . . . . . . . 2 Route ------- -11/Scrapyard -10/Materials (discovered 2 exits: [*Mat] / *Sub) -10/Subcaves (discovered 2 exits: [*Mat] / *Rec) -8/Recycling -8/Scraptown (discovered 2 exits: *Fac x2) -6/Factory (discovered 3 exits: *Fac / Low x2) -5/Factory (discovered 2 exits: *Fac / Upp) -5/Waste -5/Factory (discovered 4 exits: *Fac x2 / *Upp / *Ext) -5/Extension (discovered 2 exits: *Fac / *Cet) -5/Cetus (discovered 2 exits: *Fac / *Arc) -5/Archives (discovered 2 exits: *Fac / *Hub) -5/Hub_04(d) -4/Factory (discovered 2 exits: Res / *Upp) -4/Upper Caves -4/Upper Caves -3/Research (discovered 3 exits: Arm / *Qua x2) -3/Quarantine (discovered 2 exits: [*Sec] / *Frg) -3/Protoforge History --------- Turn | Location | Event 6 | -11/Scrapyard | Discovered new exit (range 15) 79 | -11/Scrapyard | Entered Materials 317 | -10/Materials | Build established: Mutant 332 | -10/Materials | Discovered new exit (range 8) 374 | -10/Materials | Discovered new exit (range 5) 399 | -10/Materials | Entered Subcaves 400 | -10/Subcaves | Approached by a straggling Scientist 447 | -10/Subcaves | Learned Materials security intel 686 | -10/Subcaves | Ambushed by Subdweller buried in earth 691 | -10/Subcaves | Discovered new exit (range 16) 1276 | -10/Subcaves | A swath of the cavern ceiling suddenly collapsed 1558 | -10/Subcaves | Core integrity fell below 50% 1595 | -10/Subcaves | Lost 4 parts (1p3n) 1945 | -10/Subcaves | Build established: Hauler-Mutant 2558 | -10/Subcaves | Learned Materials emergency access door positions 2805 | -10/Subcaves | Disturbed a concealed Subdweller 3315 | -10/Subcaves | Visited 4L-MR0's lab 3343 | -10/Subcaves | Found Power Bank 3619 | -10/Subcaves | Shifting Twisted Machinery released Sub. Shrapnel Launcher 3892 | -10/Subcaves | Discovered new exit (range 13) 3966 | -10/Subcaves | Visited Clippyterm 3975 | -10/Subcaves | Learned location of Section 7 (-3) 3975 | -10/Subcaves | Learned location of Extension (-5) 4027 | -10/Subcaves | Disturbed a concealed Subdweller 4048 | -10/Subcaves | Learned 8 Materials zone layouts 4687 | -10/Subcaves | A swath of the cavern ceiling suddenly collapsed 6330 | -10/Subcaves | Core integrity fell below 20% 6737 | -10/Subcaves | Found SUBCON Basin 6845 | -10/Subcaves | Entered Recycling 7542 | -8/Recycling | Scanned before Scraplab entrance 7586 | -8/Recycling | Entered Scraplab 7808 | -8/Recycling | Discovered new exit (range 2) 7811 | -8/Recycling | Entered Scraptown 8030 | -8/Scraptown | Scanned Subdweller tech in exchange for log data 8039 | -8/Scraptown | Learned Research garrison access intel 8045 | -8/Scraptown | Learned Factory stockpile data 8047 | -8/Scraptown | Learned location of Warlord (-4) 8192 | -8/Scraptown | Visited UFD Registry 8192 | -8/Scraptown | Registered with UFD as "Kinetisys" 8366 | -8/Scraptown | Visited Chapter 10 8410 | -8/Scraptown | Visited Infowarlord's Domain 8437 | -8/Scraptown | Visited Sword Containment 8475 | -8/Scraptown | Visited Research Penetration Think Tank 8519 | -8/Scraptown | Visited Abandonware Association 8555 | -8/Scraptown | Visited Scrap Suit Storage 8596 | -8/Scraptown | Visited Junk Repository 8637 | -8/Scraptown | Visited A0-MCA Data Center 8655 | -8/Scraptown | Given a C- rating by A0-MCA 8887 | -8/Scraptown | Visited Cartography Club 8930 | -8/Scraptown | Found Deep Structural Scanner 8959 | -8/Scraptown | Learned location of 3 exits from Proximity Caves 8959 | -8/Scraptown | Learned location of 1 exit from Proximity Caves 8959 | -8/Scraptown | Learned Research emergency access door positions 8959 | -8/Scraptown | Learned 4 Hub_04(d) zone layouts 8959 | -8/Scraptown | Learned 24 Proximity Caves zone layouts 8959 | -8/Scraptown | Learned 20 Proximity Caves zone layouts 8959 | -8/Scraptown | Learned 4 Recycling zone layouts 8959 | -8/Scraptown | Learned 12 Materials zone layouts 8959 | -8/Scraptown | Learned 8 Materials zone layouts 8959 | -8/Scraptown | Learned location of Testing (-2) 8959 | -8/Scraptown | Learned location of Zion (-7) 9009 | -8/Scraptown | Visited Supply Room 9117 | -8/Scraptown | Learned abandonware demo "TRNCOAT.EXE" 9178 | -8/Scraptown | Build established: Mutant 9425 | -8/Scraptown | Found A0-MCA's Component Scanner 9741 | -8/Scraptown | Discovered new exit (range 11) 9803 | -8/Scraptown | Visited Cyclists 9814 | -8/Scraptown | Entered Cyclist Reading Room 9843 | -8/Scraptown | Visited Red Mages 9879 | -8/Scraptown | Visited Symbiants 9899 | -8/Scraptown | Visited Awakened 9912 | -8/Scraptown | Visited The Evicted 9952 | -8/Scraptown | Visited CPS Storage 9967 | -8/Scraptown | Visited TADAMA 10330 | -8/Scraptown | Build established: Hauler-Mutant 10523 | -8/Scraptown | Found Exp. Terrain Scanner 10618 | -8/Scraptown | Discovered new exit (range 5) 10798 | -8/Scraptown | Met Optimus 10798 | -8/Scraptown | Accepted into 0bPrime 11198 | -8/Scraptown | Civil war broke out across Scraptown 11202 | -8/Scraptown | Entered Factory 11202 | -6/Factory | Evolved 8 slots: Propulsion x3, Utility x5 11343 | -6/Factory | Identified exit to Lower Caves 11530 | -6/Factory | Lost 5 parts (3n1u1w) 11554 | -6/Factory | Build established: Hacker-Mutant 11734 | -6/Factory | Lost 6 parts (1p2n3u) 11944 | -6/Factory | Core integrity fell below 50% 11958 | -6/Factory | Discovered new exit (range 7) 11966 | -6/Factory | Identified exit to Factory 11967 | -6/Factory | Entered another Factory area 11967 | -5/Factory | Evolved 2 slots: Propulsion x1, Utility x1 11968 | -5/Factory | Identified exit to Upper Caves 12043 | -5/Factory | Discovered new exit (range 13) 12087 | -5/Factory | Identified exit to Factory 12375 | -5/Factory | Sucked down chute 12375 | -5/Factory | Entered Waste 12383 | -5/Waste | Spotted C-40 Crusher 12385 | -5/Waste | Spotted C-40 Crusher 12409 | -5/Waste | Spotted C-40 Crusher 12416 | -5/Waste | Spotted C-40 Crusher 12424 | -5/Waste | Crushed by Compactor (1 part destroyed, 1 dropped) 12435 | -5/Waste | Spotted C-40 Crusher 12441 | -5/Waste | Spotted C-40 Crusher 12445 | -5/Waste | Crushed by Compactor (1 part destroyed, 1 dropped) 12447 | -5/Waste | Crushed by Compactor (0 parts destroyed, 1 dropped) 12450 | -5/Waste | Crushed by Compactor (1 part destroyed, 1 dropped) 12462 | -5/Waste | Discovered new exit (range 13) 12474 | -5/Waste | Identified exit to Factory 12475 | -5/Waste | Entered Factory 12481 | -5/Factory | Lost 3 parts (1n2u) 12665 | -5/Factory | Tech Extrapolator generated special schematic: Deep Structural Scanner 12752 | -5/Factory | Discovered exit to Factory (range 6) 12803 | -5/Factory | Spotted B-75 Beast 12833 | -5/Factory | Loaded intel: 8 recycling unit locations 12857 | -5/Factory | Learned location of Protoforge (-3) 12962 | -5/Factory | Discovered exit to Factory (range 5) 12996 | -5/Factory | Discovered exit to Upper Caves (range 16) 13040 | -5/Factory | Discovered new exit (range 11) 13043 | -5/Factory | Identified exit to Extension 13044 | -5/Factory | Entered Extension 13064 | -5/Extension | Rescued a captive Derelict 13064 | -5/Extension | Rescued a captive Derelict 13120 | -5/Extension | Core integrity fell below 50% 13168 | -5/Extension | Rescued a captive Derelict 13452 | -5/Extension | Scrapoids reinforcements arrived? 13608 | -5/Extension | Spotted B-75 Beast 13629 | -5/Extension | Allies destroyed B-75 Beast 13635 | -5/Extension | Spotted B-75 Beast 13896 | -5/Extension | Energy Cycler disabled 13898 | -5/Extension | Rescued A7 13922 | -5/Extension | Murdered 7 allies 13944 | -5/Extension | First assault squad dispatched 13988 | -5/Extension | Lost 3 allies 14033 | -5/Extension | Lost 11 allies 14142 | -5/Extension | Discovered exit to Factory (range 10) 14144 | -5/Extension | Discovered new exit (range 6) 14165 | -5/Extension | Identified exit to Cetus 14177 | -5/Extension | Entered Cetus 14177 | -5/Cetus | Accompanied by 4 allies (A7) 14182 | -5/Cetus | Acquired a Cetus Manufacturing Module code from A7 14203 | -5/Cetus | Spotted Cetus Guard 14203 | -5/Cetus | Spotted Cetus Guard 14206 | -5/Cetus | Allies destroyed Cetus Guard 14206 | -5/Cetus | Spotted Cetus Guard 14210 | -5/Cetus | Spotted Cetus Guard 14212 | -5/Cetus | Extracted ID and sensor layout for unrecognized location from A7's data core 14221 | -5/Cetus | Allies destroyed Cetus Guard 14226 | -5/Cetus | Destroyed Cetus Guard 14227 | -5/Cetus | Allies destroyed Cetus Guard 14248 | -5/Cetus | Lost 3 allies 14256 | -5/Cetus | Lost 3 parts (1n2u) 14290 | -5/Cetus | Started Cetus Manufacturing Module 14315 | -5/Cetus | Manufactured an Enhanced Grunt 14340 | -5/Cetus | Manufactured an Enhanced Grunt 14365 | -5/Cetus | Manufactured an Enhanced Grunt 14390 | -5/Cetus | Manufactured an Enhanced Grunt 14415 | -5/Cetus | Manufactured an Enhanced Grunt 14417 | -5/Cetus | System corruption reached 10% 14477 | -5/Cetus | Discovered new exit (range 16) 14509 | -5/Cetus | Spotted Cetus Guard 14509 | -5/Cetus | Spotted Cetus Guard 14514 | -5/Cetus | Spotted Cetus Guard 14518 | -5/Cetus | Destroyed Cetus Guard 14518 | -5/Cetus | Spotted Cetus Guard 14523 | -5/Cetus | Allies destroyed Cetus Guard 14525 | -5/Cetus | Allies destroyed Cetus Guard 14532 | -5/Cetus | Allies destroyed Cetus Guard 14542 | -5/Cetus | Discovered exit to Factory (range 16) 14553 | -5/Cetus | Met Revision 17 14615 | -5/Cetus | Identified exit to Archives 14622 | -5/Cetus | Entered Archives 14622 | -5/Archives | Accompanied by 5 allies 14750 | -5/Archives | Discovered new exit (range 16) 14755 | -5/Archives | Build established: Scavenger-Mutant 14772 | -5/Archives | Identified exit to Hub_04(d) 14945 | -5/Archives | Discovered exit to Factory (range 16) 15136 | -5/Archives | Found Prototype Device 15136 | -5/Archives | Identified Exp. Thermal Shield 15173 | -5/Archives | Entered Hub_04(d) 15173 | -5/Hub_04(d) | Accompanied by 4 allies 15185 | -5/Hub_04(d) | Discovered exit to Factory (range 16) 15303 | -5/Hub_04(d) | Entered Factory 15303 | -4/Factory | Accompanied by 1 ally 15303 | -4/Factory | Evolved 2 slots: Power x1, Utility x1 15304 | -4/Factory | Identified exit to Research 15330 | -4/Factory | Spotted B-86 Titan 15395 | -4/Factory | Loaded intel: 8 recycling unit locations 15537 | -4/Factory | Discovered new exit (range 8) 15541 | -4/Factory | Identified exit to Upper Caves 15682 | -4/Factory | Entered Upper Caves 15699 | -4/Upper Caves | Spotted B-86 Titan 15813 | -4/Upper Caves | Attracted the attention of an 0b10 checkpoint 15842 | -4/Upper Caves | Discovered new exit (range 7) 15854 | -4/Upper Caves | Entered another Upper Caves area 15854 | -4/Upper Caves | Discovered exit to Research (range 8) 15946 | -4/Upper Caves | Learned location of Quarantine (-3) 15958 | -4/Upper Caves | Entered Research 15958 | -3/Research | Evolved 2 slots: Propulsion x1, Utility x1 15959 | -3/Research | Identified exit to Quarantine 15961 | -3/Research | Loaded intel: 4 garrison access locations 16032 | -3/Research | Identified exit to Armory 16104 | -3/Research | Spotted B-86 Titan 16135 | -3/Research | Loaded intel: 5 recycling unit locations 16158 | -3/Research | Revision forces began assault on 0b10 16217 | -3/Research | Spotted B-90 Cyclops 16221 | -3/Research | Entered Quarantine 16230 | -3/Quarantine | Cryocooling Duct disabled 16245 | -3/Quarantine | Ambient heat levels rising (+20) 16245 | -3/Quarantine | Non-combat units ordered to evacuate 16406 | -3/Quarantine | Spotted Alpha 7 16411 | -3/Quarantine | Build established: Wizard-Mutant 16422 | -3/Quarantine | Found Alien Launcher 16514 | -3/Quarantine | Lost 21 parts (4p10n7u) 16559 | -3/Quarantine | Found Alien Energy Cannon 16585 | -3/Quarantine | Spotted Fortress 16614 | -3/Quarantine | Discovered new exit (range 6) 16614 | -3/Quarantine | Discovered new exit (range 6) 16615 | -3/Quarantine | Identified exit to Protoforge 16616 | -3/Quarantine | Entered Protoforge 16670 | -3/Protoforge | Superfortress began startup sequence 16689 | -3/Protoforge | Spotted Hotshot 16692 | -3/Protoforge | Spotted Hotshot 16712 | -3/Protoforge | Build established: Hacker-Mutant 16754 | -3/Protoforge | Identified Core Cannon 16778 | -3/Protoforge | Core integrity fell below 50% 16799 | -3/Protoforge | Spotted Hotshot 16800 | -3/Protoforge | Spotted Hotshot 16827 | -3/Protoforge | Lost 3 parts (2n1w) 16876 | -3/Protoforge | Spotted AP7-3 16876 | -3/Protoforge | Spotted AP7-3 16892 | -3/Protoforge | Spotted EXE-6 16892 | -3/Protoforge | Spotted EXE-6 16892 | -3/Protoforge | Spotted Decapitator 16892 | -3/Protoforge | Spotted Decapitator 16916 | -3/Protoforge | UFD initiated attack on Protoforge 16916 | -3/Protoforge | Loaded intel: 3 recycling unit locations 16928 | -3/Protoforge | Core integrity fell below 20% 16952 | -3/Protoforge | Optimus greeted in Protoforge 16964 | -3/Protoforge | Found Prototype Ballistic Gun 16964 | -3/Protoforge | Identified Cep. XC Strikerail 16967 | -3/Protoforge | Found Prototype Processor 16967 | -3/Protoforge | Identified Exp. Target Analyzer 16969 | -3/Protoforge | Found Prototype Processor 16969 | -3/Protoforge | Identified Exp. Targeting Computer 16986 | -3/Protoforge | Lost 9 allies 16987 | -3/Protoforge | Found Cep. XC Strikerail 16992 | -3/Protoforge | Found Cep. XC Strikerail 16996 | -3/Protoforge | Found Cep. XC Strikerail 16998 | -3/Protoforge | Found Prototype Processor 16998 | -3/Protoforge | Identified Exp. Core Analyzer 17020 | -3/Protoforge | Forge Plexus network access discovered 17091 | -3/Protoforge | Lost 5 allies 17094 | -3/Protoforge | Lost 3 parts (1p1u1w) 17153 | -3/Protoforge | Fabricated Q-thruster (x2) 17178 | -3/Protoforge | Spotted Overlord 17179 | -3/Protoforge | Spotted Executioner 17190 | -3/Protoforge | Spotted Executioner 17204 | -3/Protoforge | Destroyed by Overlord with Heavy Hardcell Cannon Last Messages --------------- 17197_ Slug penetrates X2-JAW(E). 17197_ X2-JAW(E) destroyed. 17197_ Slug penetrates Forge Pylon. 17198_ Lgt. Antimatter Reactor destroyed. 17198_ Knocked back. 17198_ Slug penetrates K8-KV2(h). 17198_ Slug penetrates GU-IA5(E). 17199_ Acquired Lgt. Antimatter Reactor. 17199_ Slug penetrates GU-IA5(E). 17200_ Acquired 10 matter. 17201_ Knocked back. 17201_ N-04 Retriever collects Scrap Suit. 17201_ N-04 Retriever collects Ovr. Flexi-carbon Leg. 17201_ N-04 Retriever collects Mak. Coolant Network. 17201_ Slug penetrates K8-KV2(h). 17201_ K8-KV2(h) destroyed. 17201_ Slug penetrates GU-IA5(E). 17204_ N-04 Retriever inserts Scrap Suit into Forge Plexus. 17204_ Impulse Thruster Array destroyed. 17204_ Cep. XC Strikerail destroyed. Map ----- +----------------------------------------------------+ | + " """"""""""""""""" | | = [ + [ "" " """""""""""""""""" | | + !%! """"""""""""""""""" | | ####### ### ===%= " "" """""""""""""""""""" | | ########### " "!% % " """"""""""""""""""""" | | # ## "" " """"""""""""""""""""" | | + """ ""?## " " !%! "" """"""""""""""""""""" | | # """ ""?## H "" " """""""""""""""""""""" | | # """ ""?## &%A & "" " """""""""""""""""""""" | | #? S?## %% % """""""""""""""""""""" | | #?""" ""?## % """""""""""""""""""""" | | #??"" ""?## % """""""""""""""""""""" | | #??"" ""?## " [=!=n"""""""""""""""""""""" | | #??? ??## """% !=%*! """""""""""""""""""""" | | ######?#### " """ %%%E=*["""""""""""""""""""""" | | ########### "" !%[%%"""""""""""""""""""""" | | ##??#####?# %%%= """"""""""""""""""""" | | ########???# % ![! """"""""""""""""""""" | | ########???# """"""% =%%% """"""""""""""""""""" | | ##???# """%" % [% """""""""""""""""""" | | ##???# " %% " """"""""""""""""""" | | ##???# " """""""""""""""""" | | ##???# "" "" "" """"""""""""""""" | | """"" ##???# "" " " % """""""""""""""" | | """???##???# "" ""% & %""""""""""""""" | | ""????##???# " " @ %s """"""""" | | ########???# " """ % n | | # ####### " " """ " " """"" | | # "####### " """ s E | | # "# % ## "" " A | | # "# ""## " " "" " """ """ | | #? # ""## " " """" "" | | ####/# ""## "" " " """ " "" | | / / T## "" "" " " " " | | "### # ""## " "" " | | "### # ""## "" "" " """"" "" """ | | "### # ""## ?" " " " " | | "### # ## "" ""% " | | "### ####### " "" """""" | | ### ####### "" "" % """"""""""" | | ### ##????# """ " " " """""""" | | ### ##????######## ############################# | | #### ##???????????###????????????????????????????? | | #### ###?????????????????????????????????????????? | | #### ###?????????????????????????????????????????? | | ### ##?????????????????????????????????????????? | | ##?????????????????????????????????????????? | | ### ##?????????????????????????????????????????? | | #### ###?????????????????????????????????????????? | | #### ###?????????????????????????????????????????? | +----------------------------------------------------+ Best States ------------- Heat Dissipation 46 Coolant Potential 120 Energy Generation 39 Energy Capacity 395 Matter Stores 300 Matter Capacity 300 Sight Range 23 Robot Scan Range 16 Terrain Scan Range 30 Terrain Scan Density 10 Additional Mass Support 6 Armor Coverage 675 Evasion (%) 78 Targeting Accuracy 12 Melee Accuracy 10 Target Analysis 10 Core Analysis 8 Recoil Reduction 6 Force Boost 20 Offensive Hacking 48 Defensive Hacking 36 Item Schematics ----------------- Hrd. Heavy Armor Plating | -8/Recycling | Hacked Deep Structural Scanner | -5/Factory | Extrapolated Mak. Coolant Network | -5/Factory | Extrapolated Imp. Gravmag System | -5/Factory | Scanalyzed Mak. Terrain Scanner | -5/Factory | Extrapolated 0b10 Decoder Chip [Skirmisher] | -5/Factory | Extrapolated Mak. Targeting Computer | -5/Factory | Extrapolated Tactical Coordination Suite | -5/Extension | Extrapolated Mak. Transmission Jammer | -5/Extension | Extrapolated Mak. Medium Armor Plating | -5/Extension | Extrapolated Mak. Heavy Armor Plating | -5/Extension | Extrapolated Mak. Ablative Armor | -5/Extension | Extrapolated Mak. Hacking Suite | -5/Extension | Extrapolated Mak. System Shield | -5/Extension | Extrapolated Mapping Drone Bay | -5/Extension | Extrapolated Bore Cannon | -5/Extension | Extrapolated Hvy. Beamcaster | -5/Extension | Extrapolated Mak. Light Armor Plating | -5/Extension | Extrapolated Mak. Sensor Array | -5/Cetus | Extrapolated Mak. System Restoration Module | -5/Archives | Extrapolated Cmb. Gravmag System | -5/Hub_04(d) | Hacked Lrn. Sensor Array | -4/Factory | Hacked Robot Schematics ------------------ None Fabricated ------------ Q-thruster | x2 | -3/Protoforge | Preloaded Repaired ---------- Nothing Alien Tech Used ----------------- Core Cannon Achievements -------------- None Challenges ------------ None Game ------ Seed ArcsightDeuteriumBasin Manual? 0 Play Time 02:04:15 Cumulative 251.1 hours Start 2025.05.09 @ 17:56:14 End 2025.05.09 @ 20:18:13 Sessions 1 Manual Loads 0 Difficulty Rogue Special Mode None Game No. 171 Rogue 171 Adventurer 0 Explorer 0 Win Type - Total 13 Types 6/0/5/1/0/0/0/1/0/0 Lore% 77 Gallery% 71 Achievement% 73 Wizard Run 0 Options --------- Layout 0 ASCII 0 Keyboard 0 Movement Mouse Keybinds 0 Fullscreen 2 Font 24/Smallcaps Map View 76x50 Zoom Use 0% Tactical HUD 1 Map Filters NONE Filters NONE Steam 1 RUN: 86076ad1-9949-4bd6-8f18-3a20d55d0ef0